fUSD/lending_fUSD_20260202
["ID","MTS","AMOUNT","RATE_DAILY","PERIOD"]
[404359071,1770075056744,-387.0,0.00017979,2]
[404359072,1770075056754,-387.0,0.00017979,2]
[404359073,1770075056763,-387.0,0.0001798,2]
[404359074,1770075056773,-1254.66078218,0.00017982,2]
[404359075,1770075056783,-500.0,0.00017982,2]
[404359076,1770075056794,-387.0,0.00017987,2]
[404359077,1770075056804,-387.0,0.00017987,2]
[404359078,1770075057002,-1000.0,0.00017988,2]
[404359079,1770075057016,-1000.0,0.00017988,2]
[404359080,1770075057025,-1000.0,0.00017988,2]
[404359081,1770075057035,-1000.0,0.00017988,2]
[404359082,1770075057044,-1000.0,0.00017988,2]
[404359083,1770075057053,-1000.0,0.00017988,2]
[404359084,1770075057063,-1000.0,0.00017988,2]
[404359085,1770075057073,-1000.0,0.00017988,2]
[404359086,1770075057082,-1000.0,0.00017988,2]
[404359087,1770075057091,-747.502,0.00017988,2]
[404359088,1770075057100,-24627.03721792,0.0001799,3]
[404359089,1770075057112,-25751.98746626,0.0001799,3]
[404359090,1770075057123,-5710.45240655,0.0001799,3]
[404359091,1770075057134,-509.65562623,0.0001799,3]
[404359092,1770075057145,-25407.23808303,0.0001799,3]
[404359093,1770075057154,-115456.96027021,0.0001799,2]
[404359094,1770075057164,-387.0,0.00017996,2]
[404359095,1770075057173,-387.0,0.00017997,2]
[404359096,1770075057186,-151.0,0.00017997,2]
[404359097,1770075057195,-387.0,0.00017998,2]
[404359098,1770075057204,-387.0,0.00017998,2]
[404359099,1770075057214,-150.0,0.00017999,2]
[404359100,1770075057223,-150.0,0.00017999,2]
[404359101,1770075057232,-150.0,0.00017999,2]
[404359102,1770075057242,-150.0,0.00017999,2]
[404359103,1770075057252,-150.0,0.00017999,2]
[404359104,1770075057261,-150.0,0.00017999,2]
[404359105,1770075057270,-150.0,0.00017999,2]
[404359106,1770075057279,-181.5836119,0.00017999,2]
[404359107,1770075057288,-155.0,0.00017999,2]
[404359108,1770075057297,-175.56,0.00017999,2]
[404359109,1770075057306,-300.0,0.00017999,2]
[404359110,1770075057314,-724.96374107,0.00017999,2]
[404359111,1770075057324,-300.0,0.00017999,2]
[404359112,1770075057333,-666.0,0.00017999,2]
[404359113,1770075057342,-300.0,0.00017999,2]
[404359114,1770075057351,-300.0,0.00017999,2]
[404359115,1770075057360,-300.0,0.00017999,2]
[404359116,1770075057369,-300.0,0.00017999,2]
[404359117,1770075057378,-666.0,0.00017999,2]
[404359118,1770075057389,-811.57,0.00017999,2]
[404359119,1770075057398,-811.57,0.00017999,2]
[404359120,1770075057408,-500.0,0.00017999,2]
[404359121,1770075057417,-500.0,0.00017999,2]
[404359122,1770075057426,-500.0,0.00017999,2]
[404359123,1770075057435,-500.0,0.00017999,2]
[404359124,1770075057444,-1540.59,0.00017999,2]
[404359125,1770075057453,-1540.59,0.00017999,2]
[404359126,1770075057462,-639.93,0.00017999,2]
[404359127,1770075057471,-639.93,0.00017999,2]
[404359128,1770075057480,-596.97,0.00017999,2]
[404359129,1770075057489,-596.97,0.00017999,2]
[404359130,1770075057498,-300.0,0.00017999,2]
[404359131,1770075057507,-666.0,0.00017999,2]
[404359132,1770075057516,-721.34,0.00017999,2]
[404359133,1770075057525,-721.34,0.00017999,2]
[404359134,1770075057534,-11591.91307845,0.00017999,2]
[404359135,1770075057543,-300.0,0.00017999,2]
[404359136,1770075057552,-300.0,0.00017999,2]
[404359137,1770075057561,-324.98118221,0.00017999,2]
[404359138,1770075057573,-268399.87274513,0.00018,2]
[404359139,1770075057584,-1366.04222303,0.00018,2]
[404359140,1770075057595,-2780.63285954,0.00018,2]
[404359141,1770075057606,-254.78087004,0.00018,2]
[404359142,1770075057977,-4141.51105221,0.00018,2]
[404359143,1770075057991,-26397.14237713,0.00018,2]
[404359144,1770075058015,-24029.43311997,0.00018,2]
[404359145,1770075058325,-83418.14782298,0.00018,2]
[404359146,1770075058341,-13752.29237316,0.00018,2]
[404359147,1770075058352,-583.8830497,0.00018,2]
[404359148,1770075058366,-7972.60434713,0.00018,2]
[404359149,1770075058377,-14444.47671747,0.00018,2]
[404359150,1770075058389,-1057.7123853,0.00018,2]
[404359151,1770075058400,-1748.672782,0.00018,2]
[404359152,1770075058412,-878.15443804,0.00018,2]
[404359153,1770075058423,-3409.55154587,0.00018,2]
[404359154,1770075058502,500.0,9.492e-05,2]
[404359155,1770075058523,-655.979193,0.00018,2]
[404359156,1770075058535,-632.28102123,0.00018,2]
[404359157,1770075058546,-1397.18855336,0.00018,2]
[404359158,1770075058558,-315.08814999,0.00018,2]
[404359159,1770075058569,-65842.45974825,0.00018,2]
[404359160,1770075058579,-600.01972348,0.00018,2]
[404359161,1770075058588,-1191.99317303,0.00018,2]
[404359162,1770075058598,-525.23948875,0.00018,2]
[404359163,1770075058607,-500.0,0.00018,2]
[404359164,1770075058617,-500.0,0.00018,2]
[404359165,1770075058628,-500.0,0.00018,2]
[404359166,1770075058638,-500.0,0.00018,2]
[404359167,1770075058647,-500.0,0.00018,2]
[404359168,1770075058657,-500.0,0.00018,2]
[404359169,1770075058667,-500.0,0.00018,2]
[404359170,1770075058676,-301.52589831,0.00018,2]
[404359171,1770075058687,-150.0,0.00018,7]
[404359172,1770075058697,-151.0,0.00018,2]
[404359173,1770075058707,-151.0,0.00018,2]
[404359174,1770075058716,-122792.33987971,0.00018,2]
[404359175,1770075058728,-1402.65568326,0.00018,2]
[404359176,1770075059822,3159.9548,8.629e-05,2]
[404359177,1770075065339,6840.0552,8.629e-05,2]
[404359178,1770075065369,10000.01,8.629e-05,2]
[404359179,1770075065400,10000.01,8.629e-05,2]
[404359180,1770075065431,10000.01,8.629e-05,2]
[404359181,1770075065461,10000.01,8.629e-05,2]
[404359182,1770075065492,4558.2591,8.629e-05,2]
[404359183,1770075071392,2500.0,8.629e-05,2]
[404359184,1770075073967,500.0,9.452e-05,2]
[404359185,1770075074154,500.0,9.507e-05,2]
[404359186,1770075074572,563.68158157,9.562e-05,2]
[404359187,1770075075246,150.0,8.602e-05,2]
[404359188,1770075075290,150.0,9.452e-05,2]
[404359189,1770075075425,150.0,9.507e-05,2]
[404359190,1770075075616,150.0,8.657e-05,2]
[404359191,1770075075676,500.0,9.452e-05,2]
[404359192,1770075075721,183.0,9.562e-05,2]
[404359193,1770075075796,95.06931843,8.712e-05,2]
[404359194,1770075075827,104.93068157,8.712e-05,2]
[404359195,1770075075880,572.0,9.507e-05,2]
[404359196,1770075075930,150.0,9.452e-05,2]
[404359197,1770075075981,150.0,8.602e-05,2]
[404359198,1770075076857,1185.0,9.452e-05,2]
[404359199,1770075077019,1185.0,9.507e-05,2]
[404359200,1770075077192,1185.0,9.562e-05,2]
[404359201,1770075077385,1185.0,9.616e-05,2]
[404359202,1770075102317,10000.01,8.629e-05,2]
[404359203,1770075102352,10000.01,8.629e-05,2]
[404359204,1770075102378,5000.01,8.629e-05,2]
[404359205,1770075102401,5000.01,8.629e-05,2]
[404359206,1770075102424,5000.01,8.629e-05,2]
[404359207,1770075102447,5000.01,8.629e-05,2]
[404359208,1770075110005,-5000.01,8.629e-05,2]
[404359209,1770075110152,-5000.01,8.629e-05,2]
[404359210,1770075110260,-5000.01,8.629e-05,2]
[404359211,1770075110388,-5000.01,8.629e-05,2]
[404359212,1770075122745,300.0,8.628e-05,2]
[404359213,1770075181536,150.0,8.628e-05,2]
[404359214,1770075182989,300.0,8.628e-05,2]
[404359215,1770075206949,426.0,8.628e-05,2]
[404359216,1770075226655,500.0,8.628e-05,2]
[404359217,1770075226709,359.9290376,8.628e-05,2]
[404359218,1770075226751,189.22392997,8.628e-05,2]
[404359219,1770075226920,500.0,8.628e-05,2]
[404359220,1770075227014,500.0,8.628e-05,2]
[404359221,1770075227092,272.95536707,8.628e-05,2]
[404359222,1770075231285,282.40678714,8.628e-05,2]
[404359223,1770075231327,162.06981366,8.628e-05,2]
[404359224,1770075231388,1020.00402278,8.628e-05,2]
[404359225,1770075231442,37.42104178,8.628e-05,2]
[404359226,1770075231480,982.582981,8.628e-05,2]
[404359227,1770075231544,1020.00402278,8.628e-05,2]
[404359228,1770075231603,1020.00402278,8.628e-05,2]
[404359229,1770075231664,1020.00402278,8.628e-05,2]
[404359230,1770075231724,1020.00402278,8.628e-05,2]
[404359231,1770075231790,1020.00402278,8.628e-05,2]
[404359232,1770075231860,1020.00402278,8.628e-05,2]
[404359233,1770075231931,1020.00402278,8.628e-05,2]
[404359234,1770075231991,1020.00402278,8.628e-05,2]
[404359235,1770075232329,857.39483676,8.628e-05,2]
[404359236,1770075232360,162.60918602,8.628e-05,2]
[404359237,1770075232410,1020.00402278,8.628e-05,2]
[404359238,1770075232485,1020.00402278,8.628e-05,2]
[404359239,1770075232538,1020.00402278,8.628e-05,2]
[404359240,1770075232601,1020.00402278,8.628e-05,2]
[404359241,1770075232654,757.38472286,8.628e-05,2]
[404359242,1770075232687,262.61929992,8.628e-05,2]
[404359243,1770075232748,1020.00402278,8.628e-05,2]
[404359244,1770075232802,1020.00402278,8.628e-05,2]
[404359245,1770075232899,1020.00402278,8.628e-05,2]
[404359246,1770075232959,1020.00402278,8.628e-05,2]
[404359247,1770075233014,657.37460896,8.628e-05,2]
[404359248,1770075233047,362.62941382,8.628e-05,2]
[404359249,1770075233103,1020.00402278,8.628e-05,2]
[404359250,1770075233177,1020.00402278,8.628e-05,2]
[404359251,1770075233229,1020.00402278,8.628e-05,2]
[404359252,1770075233287,1020.00402278,8.628e-05,2]
[404359253,1770075233395,557.36449506,8.628e-05,2]
[404359254,1770075233434,462.63952772,8.628e-05,2]
[404359255,1770075233501,1020.00402278,8.628e-05,2]
[404359256,1770075233560,1020.00402278,8.628e-05,2]
[404359257,1770075233626,1020.00402278,8.628e-05,2]
[404359258,1770075233700,1020.00402278,8.628e-05,2]
[404359259,1770075233771,1020.00402278,8.628e-05,2]
[404359260,1770075233835,1020.00402278,8.628e-05,2]
[404359261,1770075233890,1020.00402278,8.628e-05,2]
[404359262,1770075234005,1020.00402278,8.628e-05,2]
[404359263,1770075234073,1020.00402278,8.628e-05,2]
[404359264,1770075234126,357.33426726,8.628e-05,2]
[404359265,1770075234158,662.66975552,8.628e-05,2]
[404359266,1770075234205,1020.00402278,8.628e-05,2]
[404359267,1770075239718,3317.3362217,8.529e-05,2]
[404359268,1770075239740,5000.01,8.529e-05,2]
[404359269,1770075239772,10000.01,8.529e-05,2]
[404359270,1770075239803,765.6553783,8.529e-05,2]
[404359271,1770075245648,2500.0,8.529e-05,2]
[404359272,1770075257842,308.0088,8.529e-05,2]
[404359273,1770075258474,1055.17657529,8.628e-05,2]
[404359274,1770075267470,-5057.45325184,8.629e-05,2]
[404359275,1770075267625,-10000.01,8.629e-05,2]
[404359276,1770075267810,-10000.01,8.629e-05,2]
[404359277,1770075267972,-10000.01,8.629e-05,2]
[404359278,1770075268150,-10000.01,8.629e-05,2]
[404359279,1770075268313,-10000.01,8.629e-05,2]
[404359280,1770075268728,-10000.01,8.629e-05,2]
[404359281,1770075269154,1055.17657529,8.628e-05,2]
[404359282,1770075271233,-8944.83342471,8.629e-05,2]
[404359283,1770075271291,-10000.01,8.629e-05,2]
[404359284,1770075271328,-10000.01,8.629e-05,2]
[404359285,1770075271471,-10000.01,8.629e-05,2]
[404359286,1770075271665,-10000.01,8.629e-05,2]
[404359287,1770075271894,-10000.01,8.629e-05,2]
[404359288,1770075272060,-10000.01,8.629e-05,2]
[404359289,1770075272239,-10000.01,8.629e-05,2]
[404359290,1770075272598,-10000.01,8.629e-05,2]
[404359291,1770075281655,500.0,8.602e-05,2]
[404359292,1770075282717,150.0,8.602e-05,2]
[404359293,1770075288173,203.84144496,8.628e-05,2]
[404359294,1770075288251,500.0,8.628e-05,2]
[404359295,1770075288316,1055.17657529,8.628e-05,2]
[404359296,1770075289027,459.16069822,8.628e-05,2]
[404359297,1770075301605,300.0,8.628e-05,2]
[404359298,1770075301654,1200.0,8.628e-05,2]
[404359299,1770075342911,631.83128153,8.619e-05,2]
[404359300,1770075342937,5000.01,8.619e-05,2]
[404359301,1770075342962,4606.08393824,8.619e-05,2]
[404359302,1770075362041,300.0,8.628e-05,2]
[404359303,1770075362091,93.92606176,8.628e-05,2]
[404359304,1770075362119,56.07393824,8.628e-05,2]
[404359305,1770075362177,300.0,8.628e-05,2]
[404359306,1770075363508,300.0,8.628e-05,2]
[404359307,1770075369127,4122.1264,8.529e-05,2]
[404359308,1770075375984,221.80966176,8.628e-05,2]
[404359309,1770075376020,473.06446876,8.628e-05,2]
[404359310,1770075376071,694.87413052,8.628e-05,2]
[404359311,1770075376129,694.87413052,8.628e-05,2]
[404359312,1770075376185,694.87413052,8.628e-05,2]
[404359313,1770075376234,694.87413052,8.628e-05,2]
[404359314,1770075376306,694.87413052,8.628e-05,2]
[404359315,1770075376362,694.87413052,8.628e-05,2]
[404359316,1770075376410,357.70074812,8.628e-05,2]
[404359317,1770075376445,337.1733824,8.628e-05,2]
[404359318,1770075376494,694.87413052,8.628e-05,2]
[404359319,1770075376543,694.87413052,8.628e-05,2]
[404359320,1770075376603,694.87413052,8.628e-05,2]
[404359321,1770075376648,694.87413052,8.628e-05,2]
[404359322,1770075376706,694.87413052,8.628e-05,2]
[404359323,1770075376766,694.87413052,8.628e-05,2]
[404359324,1770075376825,493.59183448,8.628e-05,2]
[404359325,1770075376859,201.28229604,8.628e-05,2]
[404359326,1770075376909,694.87413052,8.628e-05,2]
[404359327,1770075376957,694.87413052,8.628e-05,2]
[404359328,1770075377031,694.87413052,8.628e-05,2]
[404359329,1770075377084,694.87413052,8.628e-05,2]
[404359330,1770075377133,694.87413052,8.628e-05,2]
[404359331,1770075377183,694.87413052,8.628e-05,2]
[404359332,1770075377234,629.48292084,8.628e-05,2]
[404359333,1770075377265,65.39120968,8.628e-05,2]
[404359334,1770075377322,694.87413052,8.628e-05,2]
[404359335,1770075377377,694.87413052,8.628e-05,2]
[404359336,1770075377432,694.87413052,8.628e-05,2]
[404359337,1770075377506,694.87413052,8.628e-05,2]
[404359338,1770075377556,694.87413052,8.628e-05,2]
[404359339,1770075377617,694.87413052,8.628e-05,2]
[404359340,1770075377710,694.87413052,8.628e-05,2]
[404359341,1770075377759,70.49987668,8.628e-05,2]
[404359342,1770075377794,624.37425384,8.628e-05,2]
[404359343,1770075377851,694.87413052,8.628e-05,2]
[404359344,1770075377902,694.87413052,8.628e-05,2]
[404359345,1770075377952,694.87413052,8.628e-05,2]
[404359346,1770075378019,694.87413052,8.628e-05,2]
[404359347,1770075378175,694.87413052,8.628e-05,2]
[404359348,1770075378235,694.87413052,8.628e-05,2]
[404359349,1770075378286,206.39096304,8.628e-05,2]
[404359350,1770075378325,488.48316748,8.628e-05,2]
[404359351,1770075378383,694.87413052,8.628e-05,2]
[404359352,1770075378471,694.87413052,8.628e-05,2]
[404359353,1770075388862,694.87413052,8.628e-05,2]
[404359354,1770075388935,326.05020054,8.628e-05,2]
[404359355,1770075388974,368.82392998,8.628e-05,2]
[404359356,1770075389044,375.68433073,8.628e-05,2]
[404359357,1770075389082,319.18979979,8.628e-05,2]
[404359358,1770075389163,694.87413052,8.628e-05,2]
[404359359,1770075389215,136.28138269,8.628e-05,2]
[404359360,1770075389253,459.27466644,8.628e-05,2]
[404359361,1770075391151,-99.31808139,8.628e-05,2]
[404359362,1770075391196,-694.87413052,8.628e-05,2]
[404359363,1770075391238,-694.87413052,8.628e-05,2]
[404359364,1770075391280,-694.87413052,8.628e-05,2]
[404359365,1770075391324,-694.87413052,8.628e-05,2]
[404359366,1770075391364,-694.87413052,8.628e-05,2]
[404359367,1770075391404,-694.87413052,8.628e-05,2]
[404359368,1770075391446,-694.87413052,8.628e-05,2]
[404359369,1770075391487,-694.87413052,8.628e-05,2]
[404359370,1770075391528,-694.87413052,8.628e-05,2]
[404359371,1770075391569,-694.87413052,8.628e-05,2]
[404359372,1770075391611,-694.87413052,8.628e-05,2]
[404359373,1770075391654,-694.87413052,8.628e-05,2]
[404359374,1770075391696,-694.87413052,8.628e-05,2]
[404359375,1770075391738,-694.87413052,8.628e-05,2]
[404359376,1770075391785,-694.87413052,8.628e-05,2]
[404359377,1770075391828,-694.87413052,8.628e-05,2]
[404359378,1770075391869,-694.87413052,8.628e-05,2]
[404359379,1770075391911,-480.76926902,8.628e-05,2]
[404359380,1770075391923,-99.31808139,8.628e-05,2]
[404359381,1770075391950,-114.78678011,8.628e-05,2]
[404359382,1770075391959,-580.08735041,8.628e-05,2]
[404359383,1770075391984,-114.78678011,8.628e-05,2]
[404359384,1770075391994,-580.08735041,8.628e-05,2]
[404359385,1770075392020,-114.78678011,8.628e-05,2]
[404359386,1770075392030,-580.08735041,8.628e-05,2]
[404359387,1770075392057,-114.78678011,8.628e-05,2]
[404359388,1770075392066,-580.08735041,8.628e-05,2]
[404359389,1770075392089,-114.78678011,8.628e-05,2]
[404359390,1770075392098,-580.08735041,8.628e-05,2]
[404359391,1770075392112,-114.78678011,8.628e-05,2]
[404359392,1770075392122,-580.08735041,8.628e-05,2]
[404359393,1770075392134,-114.78678011,8.628e-05,2]
[404359394,1770075392143,-580.08735041,8.628e-05,2]
[404359395,1770075392154,-114.78678011,8.628e-05,2]
[404359396,1770075392163,-580.08735041,8.628e-05,2]
[404359397,1770075392198,-114.78678011,8.628e-05,2]
[404359398,1770075392208,-580.08735041,8.629e-05,2]
[404359399,1770075392232,-694.87413052,8.629e-05,2]
[404359400,1770075392243,-694.87413052,8.629e-05,2]
[404359401,1770075392254,-694.87413052,8.629e-05,2]
[404359402,1770075392289,-694.87413052,8.629e-05,2]
[404359403,1770075392304,-694.87413052,8.629e-05,2]
[404359404,1770075392316,-694.87413052,8.629e-05,2]
[404359405,1770075392330,-694.87413052,8.629e-05,2]
[404359406,1770075392348,-694.87413052,8.629e-05,2]
[404359407,1770075392362,-694.87413052,8.629e-05,2]
[404359408,1770075392827,5531.0,0.000134,5]
[404359409,1770075396786,5000.01,8.529e-05,2]
[404359410,1770075396809,5000.01,8.529e-05,2]
[404359411,1770075396832,5000.01,8.529e-05,2]
[404359412,1770075396855,5000.01,8.529e-05,2]
[404359413,1770075396877,5000.01,8.529e-05,2]
[404359414,1770075396899,5000.01,8.529e-05,2]
[404359415,1770075396921,5000.01,8.529e-05,2]
[404359416,1770075396944,5000.01,8.529e-05,2]
[404359417,1770075396965,5000.01,8.529e-05,2]
[404359418,1770075396988,5000.01,8.529e-05,2]
[404359419,1770075400471,-793.81526552,8.529e-05,2]
[404359420,1770075405011,-458.13,8.529e-05,2]
[404359421,1770075406833,-180.81215356,8.529e-05,2]
[404359422,1770075408930,-500.0,8.529e-05,2]
[404359423,1770075412279,-280.63905298,8.529e-05,2]
[404359424,1770075414332,-213.73649392,8.529e-05,2]
[404359425,1770075417165,-515.26350608,8.529e-05,2]
[404359426,1770075422061,300.0,8.528e-05,2]
[404359427,1770075424568,3973.0,0.000133,5]
[404359428,1770075426114,-153.19,8.529e-05,2]
[404359429,1770075427990,-241.68153369,8.529e-05,2]
[404359430,1770075430752,-186.95725977,8.529e-05,2]
[404359431,1770075432963,-191.87,8.529e-05,2]
[404359432,1770075481759,300.0,8.528e-05,2]
[404359433,1770075507328,1200.0,8.528e-05,2]
[404359434,1770075516518,420.49,8.322e-05,2]
[404359435,1770075527617,2779.52,8.287e-05,2]
[404359436,1770075527639,5000.01,8.287e-05,2]
[404359437,1770075527661,5000.01,8.287e-05,2]
[404359438,1770075527692,781.8,8.287e-05,2]
[404359439,1770075542021,300.0,8.528e-05,2]
[404359440,1770075542948,300.0,8.528e-05,2]
[404359441,1770075568864,3618.21,8.269e-05,2]
[404359442,1770075568886,5000.01,8.269e-05,2]
[404359443,1770075568907,5000.01,8.269e-05,2]
[404359444,1770075568928,5000.01,8.269e-05,2]
[404359445,1770075568949,5000.01,8.269e-05,2]
[404359446,1770075568970,5000.01,8.269e-05,2]
[404359447,1770075569265,5000.01,8.269e-05,2]
[404359448,1770075569287,5000.01,8.269e-05,2]
[404359449,1770075569308,5000.01,8.269e-05,2]
[404359450,1770075569329,5000.01,8.269e-05,2]
[404359451,1770075572973,500.0,0.00010958,3]
[404359452,1770075573204,-3020.04833449,8.269e-05,2]
[404359453,1770075574659,-716.67956029,8.269e-05,2]
[404359454,1770075574999,-2141.59789478,8.269e-05,2]
[404359455,1770075575118,-716.81421044,8.269e-05,2]
[404359456,1770075601589,300.0,8.528e-05,2]
[404359457,1770075601636,1200.0,8.528e-05,2]
[404359458,1770075603347,221.0,8.529e-05,2]
[404359459,1770075654822,3279.01,8.529e-05,2]
[404359460,1770075654845,5000.01,8.529e-05,2]
[404359461,1770075654868,5000.01,8.529e-05,2]
[404359462,1770075654891,5000.01,8.529e-05,2]
[404359463,1770075654926,5000.01,8.529e-05,2]
[404359464,1770075654963,5000.01,8.529e-05,2]
[404359465,1770075654988,5000.01,8.529e-05,2]
[404359466,1770075655012,5000.01,8.529e-05,2]
[404359467,1770075655046,5000.01,8.529e-05,2]
[404359468,1770075655075,5000.01,8.529e-05,2]
[404359469,1770075671914,-3143.7186514,8.529e-05,2]
[404359470,1770075671999,-5000.01,8.529e-05,2]
[404359471,1770075672172,-5000.01,8.529e-05,2]
[404359472,1770075672484,-5000.01,8.529e-05,2]
[404359473,1770075672499,-5000.01,8.529e-05,2]
[404359474,1770075672548,-308.2565488,8.529e-05,2]
[404359475,1770075672573,-4383.4969024,8.529e-05,2]
[404359476,1770075678187,161.98,0.0001,10]
[404359477,1770075704635,196.3,6.382e-05,2]
[404359478,1770075704834,196.3,7.02e-05,2]
[404359479,1770075705036,196.3,7.658e-05,2]
[404359480,1770075705273,196.3,8.296e-05,2]
[404359481,1770075721874,150.0,8.528e-05,2]
[404359482,1770075723333,300.0,8.528e-05,2]
[404359483,1770075743315,205.10128485,8.529e-05,2]
[404359484,1770075781880,300.0,8.528e-05,2]
[404359485,1770075807552,1200.0,8.528e-05,2]
[404359486,1770075834544,200.0,7.986e-05,2]
[404359487,1770075841590,300.0,8.528e-05,2]
[404359488,1770075850254,-193.0,8.529e-05,2]
[404359489,1770075850291,-500.0,8.529e-05,2]
[404359490,1770075850326,-300.0,8.529e-05,2]
[404359491,1770075856783,-250.0,8.529e-05,2]
[404359492,1770075865218,-3274.1738,8.529e-05,2]
[404359493,1770075865283,-3451.6624,8.529e-05,2]
[404359494,1770075877383,-0.01,8.529e-05,2]
[404359495,1770075877419,-9999.99,8.529e-05,2]
[404359496,1770075895797,-2500.0,8.529e-05,2]
[404359497,1770075895832,-1880.2889,8.529e-05,2]
[404359498,1770075895951,-1239.4322,8.529e-05,2]
[404359499,1770075898647,-616.8849,8.529e-05,2]
[404359500,1770075920168,5000.01,8.529e-05,2]
[404359501,1770075920191,1725.8262,8.529e-05,2]
[404359502,1770075922321,500.0,8.095e-05,2]
[404359503,1770075926663,-300.0,8.539e-05,2]
[404359504,1770075926701,-300.0,8.539e-05,2]
[404359505,1770075926741,-353.36055523,8.539e-05,2]
[404359506,1770075932255,-193.0,8.544e-05,2]
[404359507,1770075932290,-210.8813549,8.544e-05,2]
[404359508,1770075962486,-250.0,8.566e-05,2]
[404359509,1770075962713,500.0,8.566e-05,2]
[404359510,1770075977466,5280.6587,8.529e-05,2]
[404359511,1770075977559,-300.0,8.584e-05,2]
[404359512,1770076012571,633.73419578,8.565e-05,2]
[404359513,1770076014835,9366.27580422,8.529e-05,2]
[404359514,1770076014861,4253.39419578,8.529e-05,2]
[404359515,1770076020794,746.61580422,8.529e-05,2]
[404359516,1770076020820,1753.38419578,8.529e-05,2]
[404359517,1770076023585,-250.0,8.587e-05,2]
[404359518,1770076025533,9500.01,8.219e-05,2]
[404359519,1770076025565,198.92,8.219e-05,2]
[404359520,1770076038908,-500.0,8.589e-05,2]
[404359521,1770076052059,3401.64,8.201e-05,2]
[404359522,1770076054165,-500.0,8.591e-05,2]
[404359523,1770076064010,4000.01,8.528e-05,2]
[404359524,1770076064039,5000.01,8.528e-05,2]
[404359525,1770076064069,5000.01,8.528e-05,2]
[404359526,1770076064100,5000.01,8.528e-05,2]
[404359527,1770076064129,5000.01,8.528e-05,2]
[404359528,1770076064159,5000.01,8.528e-05,2]
[404359529,1770076064190,5000.01,8.528e-05,2]
[404359530,1770076064226,10000.01,8.528e-05,2]
[404359531,1770076064255,5000.01,8.528e-05,2]
[404359532,1770076064282,5000.01,8.528e-05,2]
[404359533,1770076064319,10000.01,8.528e-05,2]
[404359534,1770076064350,5000.01,8.528e-05,2]
[404359535,1770076064385,10000.01,8.528e-05,2]
[404359536,1770076064422,10000.01,8.528e-05,2]
[404359537,1770076064458,10000.01,8.528e-05,2]
[404359538,1770076064493,10000.01,8.528e-05,2]
[404359539,1770076064528,10000.01,8.528e-05,2]
[404359540,1770076064563,10000.01,8.528e-05,2]
[404359541,1770076064596,10000.01,8.528e-05,2]
[404359542,1770076064631,10000.01,8.528e-05,2]
[404359543,1770076072578,-4732.17831937,8.528e-05,2]
[404359544,1770076072706,-5000.01,8.528e-05,2]
[404359545,1770076072972,-5000.01,8.528e-05,2]
[404359546,1770076073119,-5000.01,8.528e-05,2]
[404359547,1770076073250,-5000.01,8.528e-05,2]
[404359548,1770076073375,-5000.01,8.528e-05,2]
[404359549,1770076075499,-5000.01,8.528e-05,2]
[404359550,1770076075723,-5000.01,8.528e-05,2]
[404359551,1770076075878,-5000.01,8.528e-05,2]
[404359552,1770076076034,-5000.01,8.528e-05,2]
[404359553,1770076078132,-5000.01,8.528e-05,2]
[404359554,1770076078246,-5000.01,8.528e-05,2]
[404359555,1770076078360,-5000.01,8.528e-05,2]
[404359556,1770076078494,-5000.01,8.528e-05,2]
[404359557,1770076078623,-5000.01,8.528e-05,2]
[404359558,1770076078759,-5000.01,8.528e-05,2]
[404359559,1770076081544,-5000.01,8.528e-05,2]
[404359560,1770076081775,-5000.01,8.528e-05,2]
[404359561,1770076081956,-5000.01,8.528e-05,2]
[404359562,1770076082087,-150.0,8.527e-05,2]
[404359563,1770076082127,-4700.01,8.528e-05,2]
[404359564,1770076084061,-300.0,8.527e-05,2]
[404359565,1770076084134,-5000.01,8.528e-05,2]
[404359566,1770076084287,-5000.01,8.528e-05,2]
[404359567,1770076084421,-5000.01,8.528e-05,2]
[404359568,1770076084569,-5000.01,8.528e-05,2]
[404359569,1770076084716,-5000.01,8.528e-05,2]
[404359570,1770076084849,-5000.01,8.528e-05,2]